[Event "Pia Cramling Ladies Open 2018"]
[Site "Stockholm"]
[Date "2018.09.01"]
[Round "4"]
[White "Johansson-Ohman, Linnea"]
[Black "Hellmer, Helena"]
[Result "0-1"]
[ECO "A45"]
[WhiteElo "1495"]
[BlackElo "1436"]
[Annotator "NA"]
[PlyCount "130"]
[EventDate "2018.09.01"]
[EventType "swiss"]
[EventCountry "SWE"]
[SourceTitle "playchess.com"]
[Source "ChessBase"]
[SourceQuality "1"]
[TimeControl "1800+10"]

1. d4 {[%emt 0:00:00]} Nf6 {[%emt 0:00:00]} 2. Bf4 {[%emt 0:00:14]} d6 {[%emt 0:00:00]} 3. Nf3 {[%emt 0:00:10]} Nbd7 {[%emt 0:00:00]} 4. e3 {[%emt 0:00:13]} g6 {[%emt 0:00:00]} 5. h3 {[%emt 0:01:29]} Bg7 {[%emt 0:00:01]} 6. Be2 {[%emt 0:00:10]} O-O {[%emt 0:00:53]} 7. O-O {[%emt 0:01:34]} Re8 {[%emt 0:00:07]} 8. c3 {[%emt 0:01:29]} Ne4 {[%emt 0:00:03]} 9. Nbd2 {[%emt 0:00:55]} d5 {[%emt 0:00:30]} 10. c4 {[%emt 0:03:55]} e6 {[%emt 0:00:51]} 11. Nxe4 {[%emt 0:02:48]} dxe4 {[%emt 0:00:02]} 12. Nd2 {[%emt 0:01:06]} f5 {[%emt 0:00:04]} 13. f3 {[%emt 0:07:07]} e5 {[%emt 0:01:12]} 14. dxe5 {[%emt 0:00:02]} Bxe5 {[%emt 0:00:02]} 15. Bxe5 {[%emt 0:03:32]} Rxe5 {[%emt 0:00:35]} 16. fxe4 {[%emt 0:00:29]} fxe4 {[%emt 0:01:14]} 17. Nxe4 {[%emt 0:00:27]} c6 {[%emt 0:04:52]} 18. Nf6+ {[%emt 0:03:32]} Kg7 {[%emt 0:00:09]} 19. Qd6 {[%emt 0:00:57]} Qe7 {[%emt 0:04:05]} 20. Qxe7+ {[%emt 0:01:49]} Rxe7 {[%emt 0:00:02]} 21. Ng4 {[%emt 0:00:11]} h5 {[%emt 0:00:29]} 22. Nh2 {[%emt 0:00:50]} Rxe3 {[%emt 0:02:01]} 23. Rf2 {[%emt 0:00:32]} Nf6 {[%emt 0:00:04]} 24. Raf1 {[%emt 0:00:03]} Bf5 {[%emt 0:00:14]} 25. Bd1 {[%emt 0:00:19]} Re5 {[%emt 0:00:37]} 26. Nf3 {[%emt 0:00:10]} Rc5 {[%emt 0:00:18]} 27. Re2 {[%emt 0:00:12]} Rf8 {[%emt 0:00:05]} 28. Bb3 {[%emt 0:00:01]} Ne4 {[%emt 0:00:07]} 29. Rd1 {[%emt 0:00:05]} a5 {[%emt 0:00:18]} 30. Nh4 {[%emt 0:00:24]} Ng3 {[%emt 0:00:14]} 31. Re3 {[%emt 0:00:00]} Ne4 {[%emt 0:00:13]} 32. Nxf5+ {[%emt 0:00:03]} gxf5 {[%emt 0:00:02]} 33. Rd7+ {[%emt 0:00:10]} Rf7 {[%emt 0:00:06]} 34. Rd4 {[%emt 0:00:22]} Nf6 {[%emt 0:00:16]} 35. Rf3 {[%emt 0:00:14]} Ne4 {[%emt 0:00:09]} 36. Bc2 {[%emt 0:00:07]} Re5 {[%emt 0:00:10]} 37. Bxe4 {[%emt 0:00:10]} Rxe4 {[%emt 0:00:03]} 38. Rxe4 {[%emt 0:00:06]} fxe4 {[%emt 0:00:00]} 39. Re3 {[%emt 0:00:02]} Re7 {[%emt 0:00:04]} 40. Kf2 {[%emt 0:00:01]} Kf6 {[%emt 0:00:01]} 41. g4 {[%emt 0:00:12]} hxg4 {[%emt 0:00:02]} 42. hxg4 {[%emt 0:00:01]} Ke5 {[%emt 0:00:04]} 43. Kg3 {[%emt 0:00:07]} Rf7 {[%emt 0:00:03]} 44. g5 {[%emt 0:00:13]} Kd4 {[%emt 0:00:03]} 45. g6 {[%emt 0:00:16]} Rg7 {[%emt 0:00:07]} 46. Kf4 {[%emt 0:00:01]} Rxg6 {[%emt 0:00:08]} 47. Rxe4+ {[%emt 0:00:01]} Kc5 {[%emt 0:00:04]} 48. a3 {[%emt 0:00:19]} Rg2 {[%emt 0:00:06]} 49. b3 {[%emt 0:00:06]} Rb2 {[%emt 0:00:18]} 50. Re3 {[%emt 0:00:40]} Rd2 {[%emt 0:00:31]} 51. Ke5 {[%emt 0:00:22]} Rd7 {[%emt 0:00:09]} 52. Rc3 {[%emt 0:00:10]} Re7+ {[%emt 0:00:04]} 53. Kf6 {[%emt 0:00:03]} Re2 {[%emt 0:00:06]} 54. Rd3 {[%emt 0:00:06]} Re1 {[%emt 0:00:20]} 55. Kf5 {[%emt 0:00:14]} Re7 {[%emt 0:00:02]} 56. Kf4 {[%emt 0:00:06]} b5 {[%emt 0:00:06]} 57. cxb5 {[%emt 0:00:16]} Kxb5 {[%emt 0:00:13]} 58. Rd4 {[%emt 0:00:10]} c5 {[%emt 0:00:05]} 59. Rd5 {[%emt 0:00:09]} Kc6 {[%emt 0:00:04]} 60. Re5 {[%emt 0:00:03]} Rf7+ {[%emt 0:00:03]} 61. Ke4 {[%emt 0:00:03]} Rd7 {[%emt 0:00:04]} 62. a4 {[%emt 0:00:24]} Rd4+ {[%emt 0:00:06]} 63. Kf3 {[%emt 0:00:15]} Rb4 {[%emt 0:00:12]} 64. Re3 {[%emt 0:00:01]} c4 {[%emt 0:00:30]} 65. bxc4 Rxc4 0-1

[Event "Pia Cramling Ladies Open 2018"]
[Site "Stockholm"]
[Date "2018.09.02"]
[Round "5"]
[White "Mariano-Wågman, Christine Rose"]
[Black "Johansson, Viktoria"]
[Result "1/2-1/2"]
[ECO "B25"]
[WhiteElo "2084"]
[BlackElo "2106"]
[Annotator "NA RC"]
[PlyCount "97"]
[EventDate "2018.09.01"]
[EventType "swiss"]
[EventCountry "SWE"]
[SourceTitle "playchess.com"]
[Source "ChessBase"]
[SourceQuality "1"]
[TimeControl "1800+10"]

{[%evp 8,80,13,0,0,32767,32767,32767,32767,32767,32767,32767,32767,32767,32767,32767,-39,-45,-33,-22,-2,-19,-18,-23,57,18,14,23,29,20,77,67,78,68,80,36,86,32767,93,88,89,32767,116,82,225,239,32767,32767,315,329,32767,32767,32767,90,120,74,112,0,83,-8,0,32767,32767,32767,32767,32767,32767,32767,32767,32767,32767,32767,32767,32767,0]} 1. e4 {[%emt 0:00:00]} c5 {[%emt 0:00:00]} 2. Nc3 {[%emt 0:00:00]} Nc6 {[%emt 0:00:05]} 3. Nge2 {[%emt 0:00:01]} g6 {[%emt 0:00:15]} 4. g3 {[%emt 0:00:04]} Bg7 {[%emt 0:00:06]} 5. Bg2 {[%emt 0:00:04] LiveBook: 392 Games} d6 {[%emt 0:00:47]} 6. O-O {[%emt 0:00:11]} e6 {[%emt 0:00:22]} 7. d3 {[%emt 0:00:04]} Nge7 {[%emt 0:00:16]} 8. f4 {[%emt 0:00:27]} O-O {[%emt 0:00:14]} 9. h3 {[%emt 0:00:05] B25: Closed Sicilian: 3 g3, lines without early Be3} (9. Be3 Nd4 10. Qd2 Rb8 11. Nd1 b5 12. g4 f5 13. gxf5 exf5 14. c3 Nxe2+ 15. Qxe2 Qc7 16. Nf2 Re8 17. Nh3 h6 18. Qf2 Be6 19. e5 {½-½ (48) Rahls,P (2238)-Faibisovich,V (2312) Dresden 2018}) 9... Rb8 {[%emt 0:00:29]} 10. a4 {[%emt 0:00:04]} a6 {[%emt 0:00:29]} 11. g4 {[%emt 0:00:09]} f5 {[%emt 0:00:30]} 12. Ng3 {[%emt 0:01:10]} Nd4 {[%emt 0:04:31]} 13. Nce2 {[%emt 0:00:28]} b5 {[%emt 0:00:40]} 14. axb5 {[%emt 0:03:31]} axb5 {[%emt 0:00:17]} 15. exf5 $146 {[%emt 0:00:17]} ({Predecessor:} 15. c3 Nxe2+ 16. Qxe2 Qc7 17. Be3 Bb7 {1-0 (54) Colin,P (1830)-Bertin,C (1616) Troyes 2010}) 15... gxf5 {[%emt 0:02:50]} ({Black should play} 15... Nxe2+ $11 16. Qxe2 exf5) 16. Nxd4 {[%emt 0:00:18]} (16. c3 $5 {[%cal Rc3d4]} Nxe2+ 17. Qxe2 $14) 16... Bxd4+ {[%emt 0:03:57]} 17. Kh2 {[%emt 0:00:01]} b4 {[%emt 0:01:13]} 18. Qe1 {[%emt 0:00:41]} Kh8 {[%emt 0:02:52]} 19. c3 {[%emt 0:00:08]} bxc3 {[%emt 0:00:58]} 20. bxc3 {[%emt 0:00:02]} Bg7 {[%emt 0:00:06]} 21. Ra7 {[%emt 0:00:44]} Bd7 {[%emt 0:06:48]} 22. Nh5 {[%emt 0:00:28]} Rf7 {[%emt 0:02:29]} 23. Nxg7 {[%emt 0:01:04]} Rxg7 {[%emt 0:00:04]} 24. g5 {[%emt 0:00:20]} Nc8 {[%emt 0:00:32]} 25. Ra2 {[%emt 0:00:26]} Qc7 {[%emt 0:00:45] [#]} (25... h6 $16) 26. c4 $1 {[%emt 0:00:11]} Kg8 {[%emt 0:00:33]} 27. Bb2 {[%emt 0:00:05]} Rg6 {[%emt 0:00:23]} 28. Qc3 {[%emt 0:00:11]} e5 {[%emt 0:01:16]} 29. Bd5+ {[%emt 0:01:53]} Kf8 {[%emt 0:00:01]} 30. h4 $2 {[%emt 0:00:32]} (30. fxe5 $18 {has better winning chances.} dxe5 31. Qe1 e4+ 32. Kh1) 30... Ne7 {[%emt 0:00:05]} 31. h5 {[%emt 0:00:12]} Rg7 {[%emt 0:00:02]} 32. fxe5 {[%emt 0:00:05]} (32. Bg2 $16) 32... dxe5 {[%emt 0:00:01]} (32... Nxd5 $11 {hält das Gleichgewicht.} 33. cxd5 dxe5) 33. Ra8 {[%emt 0:05:01]} (33. Qe1 $1 $14 Rxb2+ 34. Rxb2 Rxg5 35. Qh4) 33... Rxa8 34. Bxa8 {[%emt 0:00:02]} Rxg5 {[%emt 0:00:16]} 35. Qxe5 {[%emt 0:00:50]} Rxh5+ {[%emt 0:00:00]} 36. Kg1 {[%emt 0:02:17]} Rg5+ {[%emt 0:00:00]} 37. Kf2 {[%emt 0:00:03]} Qxe5 {[%emt 0:00:10]} 38. Bxe5 {[%emt 0:00:01]} Bc6 {[%emt 0:00:37]} 39. Bxc6 {[%emt 0:00:40]} Nxc6 {[%emt 0:00:01]} 40. Bd6+ {[%emt 0:00:01]} Kf7 $11 {[%emt 0:00:01]} 41. Bxc5 {[%emt 0:00:11]} Ne5 {[%emt 0:00:21]} 42. Rd1 {[%emt 0:00:43]} h5 {[%emt 0:00:13]} 43. Bd6 {[%emt 0:00:17]} Ke6 {[%emt 0:00:27]} 44. c5 {[%emt 0:00:07]} Kd5 {[%emt 0:00:12]} 45. d4 {[%emt 0:00:28]} Nc6 {[%emt 0:00:01]} 46. Ke3 {[%emt 0:00:44]} Rg4 {[%emt 0:00:00]} 47. Bf4 {[%emt 0:00:16]} h4 {[%emt 0:00:12]} 48. Rb1 {[%emt 0:00:47]} Rg7 {[%emt 0:00:26]} 49. Rb6 {[%emt 0:01:42] Kxc5 dxc5} 1/2-1/2

[Event "Pia Cramling Ladies Open 2018"]
[Site "Stockholm"]
[Date "2018.09.02"]
[Round "5"]
[White "Andersson, Christin"]
[Black "Puuska, Heini"]
[Result "1-0"]
[ECO "B13"]
[WhiteElo "2077"]
[BlackElo "1961"]
[Annotator "NA RC"]
[PlyCount "117"]
[EventDate "2018.09.01"]
[EventType "swiss"]
[EventCountry "SWE"]
[SourceTitle "playchess.com"]
[Source "ChessBase"]
[SourceQuality "1"]
[TimeControl "1800+10"]

{[%evp 8,110,31,14,32767,32767,10,32767,12,7,32767,-14,-8,-14,19,-6,0,-1,-6,-4,0,0,0,11,14,8,72,31,68,-16,81,32767,13,12,61,-22,4,0,18,0,18,0,68,47,49,58,60,48,95,8,63,61,54,47,179,76,47,54,70,43,32767,32767,32767,75,93,32767,74,32767,32767,32767,229,333,682,397,425,427,32767,1079,412,407,656,32767,32767,32767,32767,32767,32767,1619,1787,32767,32767,32767,32767,857,32767,29956,32767,32767,32767,29979,29979,32767,32767,32767,29984]} 1. e4 {[%emt 0:00:00]} c6 {[%emt 0:00:00]} 2. d4 {[%emt 0:00:10]} d5 {[%emt 0:00:14]} 3. exd5 {[%emt 0:00:02]} cxd5 {[%emt 0:00:08]} 4. Nf3 {[%emt 0:00:05]} Nf6 {[%emt 0:00:34]} 5. Bb5+ {[%emt 0:00:08]} Nc6 {[%emt 0:01:04] B13: Caro-Kann: Exchange Variation and Panov-Botvinnik Attack} 6. Ne5 {[%emt 0:00:25]} Bd7 {[%emt 0:00:13]} 7. Nxd7 {[%emt 0:00:23]} Qxd7 {[%emt 0:01:21] LiveBook: 46 Games} 8. O-O {[%emt 0:00:15]} (8. c3 e6 9. O-O Bd6 10. Nd2 O-O 11. Re1 a6 12. Bd3 e5 13. dxe5 Nxe5 {1-0 (52) Kramnik,V (2787)-Caruana,F (2811) Wijk aan Zee 2018}) 8... a6 {[%emt 0:00:51]} 9. Ba4 {[%emt 0:00:22]} b5 {[%emt 0:02:21]} 10. Bb3 {[%emt 0:00:03]} Na5 $146 {[%emt 0:01:23]} ({Predecessor:} 10... e6 11. c3 Bd6 {½-½ (27) Szurovszky,E (2024)-Pap,A (1958) Hungary 2013}) 11. Bg5 {[%emt 0:00:32]} Ne4 {[%emt 0:00:57]} 12. Bf4 {[%emt 0:00:09]} e6 {[%emt 0:00:12]} 13. Nd2 {[%emt 0:00:54]} Nxd2 {[%emt 0:00:32]} 14. Qxd2 {[%emt 0:00:08]} Nc4 {[%emt 0:00:28]} 15. Bxc4 {[%emt 0:00:06]} bxc4 {[%emt 0:00:15]} 16. Be5 {[%emt 0:00:06]} Rg8 {[%emt 0:02:22]} (16... f6 $11 17. Bg3 h5) 17. Rfe1 {[%emt 0:00:21]} Bd6 {[%emt 0:00:14]} 18. f4 {[%emt 0:00:56]} ({Lieber} 18. Rab1 $16) 18... Bxe5 {[%emt 0:00:45]} (18... Be7 $11) 19. Rxe5 {[%emt 0:00:29]} g6 $1 {[%emt 0:00:27]} 20. Rae1 {[%emt 0:00:10]} Rb8 {[%emt 0:01:11]} 21. Qa5 {[%emt 0:01:03]} (21. b3 $5 {[%cal Rb3c4]}) 21... Qb5 {[%emt 0:01:39]} 22. Rxd5 {[%emt 0:00:32]} Qxa5 {[%emt 0:00:03]} 23. Rxa5 {[%emt 0:00:02]} Rxb2 {[%emt 0:00:16]} 24. Rxa6 {[%emt 0:00:39]} Kf8 {[%emt 0:00:12]} (24... Ke7 $11) 25. Re2 {[%emt 0:00:59]} Kg7 {[%emt 0:00:12]} 26. Kf2 {[%emt 0:00:40]} Rgb8 {[%emt 0:01:50]} 27. Ra4 {[%emt 0:00:24]} c3 {[%emt 0:01:08]} 28. Ra3 {[%emt 0:00:32]} (28. Ke3 $16) 28... R8b4 {[%emt 0:00:35]} (28... Rd8 $11) 29. Ke3 {[%emt 0:00:16]} Rc4 {[%emt 0:01:12]} 30. Kd3 {[%emt 0:00:59]} Rc7 {[%emt 0:00:05]} (30... Rbb4 $14) 31. Re5 {[%emt 0:00:20]} (31. Re1 $18) 31... Rb1 {[%emt 0:00:26]} 32. Rxc3 {[%emt 0:00:44]} Ra7 {[%emt 0:00:20]} 33. a3 {[%emt 0:00:24]} Rg1 {[%emt 0:00:39]} 34. Re2 {[%emt 0:00:27]} Ra1 {[%emt 0:00:02]} 35. Rd2 {[%emt 0:00:30]} h5 {[%emt 0:00:23]} 36. Rb3 {[%emt 0:00:13]} Kf6 {[%emt 0:00:48]} 37. c4 {[%emt 0:01:02]} Kf5 {[%emt 0:00:23]} 38. c5 {[%emt 0:00:31]} Kxf4 {[%emt 0:00:43]} 39. c6 {[%emt 0:00:19]} R1xa3 $2 {[%emt 0:02:07]} (39... h4 40. Rc2 Rc7) 40. Rxa3 {[%emt 0:00:02]} Rxa3+ {[%emt 0:00:01]} 41. Kc4 {[%emt 0:00:09]} Ke3 {[%emt 0:00:34]} 42. Rc2 {[%emt 0:00:20]} Ra8 {[%emt 0:00:42]} 43. d5 {[%emt 0:00:20]} exd5+ {[%emt 0:00:07]} 44. Kxd5 {[%emt 0:00:02]} Kd3 {[%emt 0:01:04]} 45. Rf2 {[%emt 0:00:08]} Rd8+ {[%emt 0:00:04]} 46. Kc5 {[%emt 0:00:05]} f5 {[%emt 0:00:10]} 47. c7 {[%emt 0:00:07]} Rc8 {[%emt 0:00:05]} 48. Kc6 {[%emt 0:00:02]} Ke3 {[%emt 0:00:08]} 49. Ra2 {[%emt 0:00:05]} g5 {[%emt 0:00:15]} 50. Kd7 {[%emt 0:00:16]} (50. Ra5 $142 Ke4 51. Kd7) 50... Rg8 {[%emt 0:00:25]} 51. c8=Q {[%emt 0:00:16]} Rxc8 {[%emt 0:00:01]} 52. Kxc8 {[%emt 0:00:02]} h4 {[%emt 0:00:47]} 53. Kd7 {[%emt 0:00:13]} g4 {[%emt 0:00:07]} 54. Ke6 {[%emt 0:00:09]} f4 {[%emt 0:00:01]} 55. Kf5 {[%emt 0:00:16]} g3 {[%emt 0:01:16]} 56. hxg3 {[%emt 0:00:04]} hxg3 {[%emt 0:00:36]} 57. Kg4 {[%emt 0:00:04]} Ke4 {[%emt 0:01:00]} 58. Ra4+ {[%emt 0:00:02]} Ke3 {[%emt 0:00:01]} 59. Rxf4 {[%emt 0:00:03]} 1-0

[Event "Pia Cramling Ladies Open 2018"]
[Site "Stockholm"]
[Date "2018.09.02"]
[Round "5"]
[White "Tuominen, Tanja"]
[Black "Fransson, Pia"]
[Result "1-0"]
[ECO "B01"]
[WhiteElo "2076"]
[BlackElo "1549"]
[Annotator "NA RC"]
[PlyCount "79"]
[EventDate "2018.09.01"]
[EventType "swiss"]
[EventCountry "SWE"]
[SourceTitle "playchess.com"]
[Source "ChessBase"]
[SourceQuality "1"]
[TimeControl "1800+10"]

1. e4 {[%emt 0:00:00]} d5 {[%emt 0:00:00]} 2. exd5 {[%emt 0:00:00]} Qxd5 {[%emt 0:00:00]} 3. d4 {[%emt 0:00:02]} Nf6 {[%emt 0:00:00]} 4. Nc3 {[%emt 0:00:39]} Qd8 {[%emt 0:00:00]} 5. Nf3 {[%emt 0:00:41] LiveBook: 389 Games} Bg4 {[%emt 0:00:10]} 6. Be2 {[%emt 0:00:14]} e6 {[%emt 0:00:02]} 7. O-O {[%emt 0:00:11]} Be7 {[%emt 0:00:03] B01: Scandinavian Defence} (7... c6 8. h3 Bh5 9. a3 Bd6 10. Ne5 Bxe2 11. Qxe2 Nbd7 12. Bg5 Qc7 13. Rfe1 O-O 14. Nxd7 Nxd7 15. Ne4 {1-0 (47) Shkuran,D (2425)-Vovk,Y (2611) Lvov 2016}) 8. h3 {[%emt 0:00:09]} Bh5 {[%emt 0:00:31]} 9. Bf4 {[%emt 0:00:31]} O-O {[%emt 0:00:07]} 10. Ne5 $146 {[%emt 0:01:35]} ({Predecessor:} 10. Qd2 c6 11. Rad1 Nbd7 12. Ne5 Bxe2 13. Qxe2 Nd5 14. Nxd5 cxd5 15. Rd3 {1-0 (54) Timoshin,A (1852)-Petrov,D (2260) Tallinn 2018}) 10... Bxe2 {[%emt 0:00:19]} 11. Nxe2 {[%emt 0:00:12]} Nbd7 {[%emt 0:00:51]} 12. Nf3 {[%emt 0:01:41]} Nd5 {[%emt 0:01:34]} 13. Bg3 {[%emt 0:00:25]} b5 {[%emt 0:00:04]} 14. Qd3 {[%emt 0:02:15]} c6 {[%emt 0:04:28]} 15. a4 {[%emt 0:02:48]} a6 {[%emt 0:06:45]} 16. Nf4 {[%emt 0:03:45]} Nb4 {[%emt 0:01:30]} 17. Qb3 {[%emt 0:01:37]} Nb6 {[%emt 0:02:51]} 18. axb5 {[%emt 0:01:57]} cxb5 {[%emt 0:00:37]} 19. c3 {[%emt 0:01:26]} N4d5 {[%emt 0:01:01]} 20. Ne5 {[%emt 0:01:11]} Qc8 {[%emt 0:01:19]} 21. Nxd5 {[%emt 0:01:45]} Nxd5 {[%emt 0:01:42]} 22. Ra2 {[%emt 0:00:19]} f6 {[%emt 0:00:58]} 23. Nf3 {[%emt 0:00:28]} Qc6 {[%emt 0:03:24]} 24. Rfa1 {[%emt 0:00:23]} Rfc8 {[%emt 0:02:00]} 25. Nd2 {[%emt 0:02:19]} Bd6 {[%emt 0:00:25]} 26. Bxd6 {[%emt 0:00:31]} Qxd6 $14 {[%emt 0:00:01]} 27. Ra5 {[%emt 0:00:02]} Rc6 {[%emt 0:01:50]} 28. Rxb5 {[%emt 0:01:27]} Rb6 {[%emt 0:00:50]} 29. Rxb6 {[%emt 0:03:01]} Nxb6 {[%emt 0:00:02]} 30. Ne4 {[%emt 0:00:14]} Qd5 {[%emt 0:00:03]} 31. Qxd5 {[%emt 0:00:12]} Nxd5 {[%emt 0:00:02]} 32. Nc5 {[%emt 0:00:05]} Rb8 {[%emt 0:00:16]} 33. Ra2 {[%emt 0:01:06]} a5 {[%emt 0:00:12]} 34. Nxe6 {[%emt 0:00:10]} Kf7 {[%emt 0:00:03]} 35. Nc5 {[%emt 0:00:08]} Nf4 {[%emt 0:00:19]} 36. Kf1 {[%emt 0:00:10]} Ne6 {[%emt 0:00:49]} 37. Nxe6 {[%emt 0:00:19]} Kxe6 {[%emt 0:00:01]} 38. Ke2 {[%emt 0:00:02]} Kd5 {[%emt 0:00:01]} 39. Kd3 {[%emt 0:00:01]} Rb3 {[%emt 0:00:11]} 40. Rxa5+ {[%emt 0:00:07]} 1-0

[Event "Pia Cramling Ladies Open 2018"]
[Site "Stockholm"]
[Date "2018.09.02"]
[Round "5"]
[White "Fransson, Angelina"]
[Black "Bengtsson, Jessica"]
[Result "0-1"]
[ECO "C54"]
[WhiteElo "2004"]
[BlackElo "1986"]
[Annotator "NA RC"]
[PlyCount "62"]
[EventDate "2018.09.01"]
[EventType "swiss"]
[EventCountry "SWE"]
[SourceTitle "playchess.com"]
[Source "ChessBase"]
[SourceQuality "1"]
[TimeControl "1800+10"]

1. e4 {[%emt 0:00:00]} e5 {[%emt 0:00:07]} 2. Nf3 {[%emt 0:00:00]} Nc6 {[%emt 0:00:05]} 3. d4 {[%emt 0:00:00]} exd4 {[%emt 0:00:12]} 4. Bc4 {[%emt 0:00:00]} Bc5 {[%emt 0:00:15]} 5. c3 {[%emt 0:00:11]} Nf6 {[%emt 0:00:15]} 6. e5 {[%emt 0:02:28]} d5 {[%emt 0:00:17]} 7. Bb5 {[%emt 0:00:06]} Ne4 {[%emt 0:00:08]} 8. Nxd4 {[%emt 0:02:10]} (8. cxd4 $11 Be7 9. O-O) 8... Bd7 {[%emt 0:03:51]} 9. Bxc6 {[%emt 0:00:02]} bxc6 {[%emt 0:06:00]} 10. O-O {[%emt 0:00:12]} O-O {[%emt 0:00:22]} 11. f3 {[%emt 0:01:31] C56: Two Knights: 4 d4 exd4 5 0-0 Nxe4} Ng5 {[%emt 0:00:34] LiveBook: 5 Games} 12. Be3 {[%emt 0:02:30]} Ne6 {[%emt 0:04:06]} (12... f6 $15 13. Bxg5 fxg5) 13. f4 {[%emt 0:02:05]} Re8 {[%emt 0:03:33]} (13... f5 14. Nd2 Bxd4 15. cxd4 c5 16. Nf3 Bb5 17. Rf2 c4 18. Ng5 Qe7 19. Nxe6 Qxe6 20. Bd2 {½-½ (58) Cvek,R (2506)-Balogh,C (2631) Slovakia 2018}) 14. Qe1 $146 {[%emt 0:05:59]} ({Predecessor:} 14. Nd2 Bb6 15. Qf3 Nf8 16. Qf2 Ng6 17. b4 a5 18. N2b3 axb4 19. cxb4 Ra4 20. a3 Qa8 21. Qd2 Qa6 22. Rfc1 Ra8 23. Nc5 Bxc5 24. Rxc5 Rxa3 {½-½ (24) Van Leeuwen,E (2484)-Jansen,J (2427) ICCF email 2013}) 14... Rb8 {[%emt 0:01:18]} (14... Bxd4 $5 15. cxd4 c5 $15) 15. Nd2 {[%emt 0:08:52]} Bxd4 {[%emt 0:03:59]} 16. cxd4 {[%emt 0:00:06]} c5 {[%emt 0:00:11]} 17. dxc5 {[%emt 0:03:11]} d4 {[%emt 0:00:12]} 18. f5 {[%emt 0:00:01]} dxe3 {[%emt 0:01:40]} 19. fxe6 {[%emt 0:00:02]} Bxe6 {[%emt 0:00:20]} 20. Qxe3 {[%emt 0:00:04]} Rxb2 {[%emt 0:00:20]} 21. Rad1 {[%emt 0:00:48]} Qa8 {[%emt 0:02:19]} 22. Qg3 {[%emt 0:00:45]} Rxa2 {[%emt 0:00:48]} 23. Nf3 {[%emt 0:00:33]} Bd5 {[%emt 0:00:34]} 24. Rd4 {[%emt 0:00:08]} Qc6 {[%emt 0:00:31]} 25. Rc1 {[%emt 0:00:23]} h6 {[%emt 0:00:19]} 26. Rg4 {[%emt 0:00:26]} g6 {[%emt 0:00:23]} 27. Nd4 {[%emt 0:00:25]} Qd7 {[%emt 0:01:08]} 28. c6 {[%emt 0:00:13]} Qe7 {[%emt 0:00:16]} 29. Re1 {[%emt 0:00:07]} Rxg2+ {[%emt 0:00:07]} 30. Qxg2 {[%emt 0:00:06]} Bxg2 {[%emt 0:00:01]} 31. Rxg2 {[%emt 0:00:02]} Qc5 $19 {[%emt 0:00:03]} 0-1

[Event "Pia Cramling Ladies Open 2018"]
[Site "Stockholm"]
[Date "2018.09.02"]
[Round "5"]
[White "Berg, Maria"]
[Black "Truskavetska, Solomia"]
[Result "1-0"]
[ECO "B01"]
[WhiteElo "1722"]
[BlackElo "1081"]
[Annotator "NA RC"]
[PlyCount "139"]
[EventDate "2018.09.01"]
[EventType "swiss"]
[EventCountry "SWE"]
[SourceTitle "playchess.com"]
[Source "ChessBase"]
[SourceQuality "1"]
[TimeControl "1800+10"]

1. e4 {[%emt 0:00:00]} d5 {[%emt 0:00:01]} 2. exd5 {[%emt 0:00:22]} Nf6 {[%emt 0:00:19]} 3. Nc3 {[%emt 0:00:25]} Nxd5 {[%emt 0:00:21]} 4. Bc4 {[%emt 0:04:41]} Nb6 {[%emt 0:01:46]} 5. Bb3 {[%emt 0:00:42]} e5 {[%emt 0:00:39]} 6. Nge2 {[%emt 0:02:12]} Nc6 {[%emt 0:01:10]} 7. O-O {[%emt 0:00:12]} Bd6 {[%emt 0:01:38]} 8. d3 {[%emt 0:00:23]} O-O {[%emt 0:02:05]} 9. Be3 {[%emt 0:00:31]} a5 {[%emt 0:00:53]} 10. Ne4 {[%emt 0:01:40]} a4 {[%emt 0:02:10]} 11. Bc4 {[%emt 0:04:45]} Nxc4 {[%emt 0:00:10]} 12. dxc4 {[%emt 0:00:10]} Be7 {[%emt 0:00:10]} 13. c3 {[%emt 0:00:10]} f5 {[%emt 0:00:10]} 14. Qc2 {[%emt 0:00:10]} fxe4 {[%emt 0:00:10]} 15. Rad1 {[%emt 0:00:10]} Qe8 {[%emt 0:06:04]} 16. Qxe4 {[%emt 0:11:58]} Qg6 {[%emt 0:03:13]} 17. Qd5+ {[%emt 0:00:37]} Be6 {[%emt 0:02:13]} 18. Qb5 {[%emt 0:02:19]} Bc8 {[%emt 0:03:21]} 19. c5 {[%emt 0:00:24]} Ra5 {[%emt 0:02:38]} 20. Qd3 {[%emt 0:00:04]} Qxd3 {[%emt 0:00:20]} 21. Rxd3 {[%emt 0:00:01]} Bxc5 {[%emt 0:00:39]} 22. b4 {[%emt 0:00:28]} axb3 {[%emt 0:00:19]} 23. axb3 {[%emt 0:00:02]} Bxe3 {[%emt 0:00:32]} 24. Rxe3 {[%emt 0:00:01]} g6 {[%emt 0:01:05]} 25. Re1 {[%emt 0:00:07]} Bf5 {[%emt 0:00:58]} 26. Ng3 {[%emt 0:00:04]} Bc2 {[%emt 0:00:08]} 27. b4 {[%emt 0:00:02]} Ra2 {[%emt 0:00:01]} 28. b5 {[%emt 0:00:11]} Na7 {[%emt 0:00:21]} 29. Rxe5 {[%emt 0:00:02]} Bd3 {[%emt 0:00:05]} 30. Nh1 {[%emt 0:00:22]} Nxb5 {[%emt 0:00:10]} 31. Rd5 {[%emt 0:00:04]} Rd2 {[%emt 0:00:20]} 32. f3 {[%emt 0:00:24]} Rf5 {[%emt 0:00:42]} 33. Rd8+ {[%emt 0:00:03]} Kg7 {[%emt 0:00:05]} 34. Ng3 {[%emt 0:00:03]} Rf8 {[%emt 0:00:11]} 35. Rd5 {[%emt 0:00:07]} Nxc3 {[%emt 0:00:18]} 36. Rd4 {[%emt 0:00:42]} c5 {[%emt 0:00:16]} 37. Rd7+ {[%emt 0:00:43]} Rf7 {[%emt 0:00:13]} 38. Rd8 {[%emt 0:00:14]} c4 {[%emt 0:00:03]} 39. Ree8 {[%emt 0:00:31]} b5 {[%emt 0:00:17]} 40. Rg8+ {[%emt 0:00:16]} Kh6 {[%emt 0:00:01]} 41. Rd4 {[%emt 0:00:03]} g5 {[%emt 0:00:19]} 42. Rd6+ {[%emt 0:00:21]} Bg6 {[%emt 0:00:05]} 43. Rxd2 {[%emt 0:00:13]} b4 {[%emt 0:00:17]} 44. Rb8 {[%emt 0:00:02]} Re7 {[%emt 0:00:13]} 45. Rxb4 {[%emt 0:00:04]} Rc7 {[%emt 0:00:02]} 46. Rd4 {[%emt 0:00:04]} Bd3 {[%emt 0:00:07]} 47. Rd6+ {[%emt 0:00:27]} Kg7 {[%emt 0:00:04]} 48. Kf2 {[%emt 0:00:10]} Re7 {[%emt 0:00:17]} 49. Rc6 {[%emt 0:00:11]} h6 {[%emt 0:00:13]} 50. Rbxc4 {[%emt 0:00:03]} Bxc4 {[%emt 0:00:03]} 51. Nf5+ {[%emt 0:00:01]} Kf7 {[%emt 0:00:06]} 52. Nxe7 {[%emt 0:00:03]} Kxe7 {[%emt 0:00:02]} 53. Rxc4 {[%emt 0:00:00]} Nd1+ {[%emt 0:00:02]} 54. Ke2 {[%emt 0:00:03]} Nb2 {[%emt 0:00:02]} 55. Rc2 {[%emt 0:00:03]} Na4 {[%emt 0:00:02]} 56. Ke3 {[%emt 0:00:04]} h5 {[%emt 0:00:11]} 57. Rc6 {[%emt 0:00:02]} Kf7 {[%emt 0:00:21]} 58. Ke4 {[%emt 0:00:04]} Nb2 {[%emt 0:00:11]} 59. Kf5 {[%emt 0:00:03]} Nd1 {[%emt 0:00:02]} 60. Kxg5 {[%emt 0:00:11]} Ne3 {[%emt 0:00:02]} 61. g4 {[%emt 0:00:15]} hxg4 {[%emt 0:00:16]} 62. fxg4 {[%emt 0:00:03]} Nd5 {[%emt 0:00:07]} 63. h4 {[%emt 0:00:11]} Kg7 {[%emt 0:00:22]} 64. h5 {[%emt 0:00:10]} Kg8 {[%emt 0:00:06]} 65. Rd6 {[%emt 0:00:28]} Ne7 {[%emt 0:00:13]} 66. Kf6 {[%emt 0:00:08]} Kh7 {[%emt 0:00:24]} 67. Kxe7 {[%emt 0:00:06]} Kg7 {[%emt 0:00:02]} 68. g5 {[%emt 0:00:26]} Kh7 {[%emt 0:00:07]} 69. Kf7 {[%emt 0:00:08]} Kh8 {[%emt 0:00:07]} 70. Rh6# {[%emt 0:00:02]} 1-0